fUSD/lending_fUSD_20260615
["ID","MTS","AMOUNT","RATE_DAILY","PERIOD"]
[425097908,1781493038000,-500.0,0.00013388,2]
[425097909,1781493038000,-173.30566126,0.00013488,2]
[425097911,1781493038000,-150.0,0.00013488,2]
[425097912,1781493038000,-150.43087517,0.00013488,2]
[425097913,1781493038000,-150.59431208,0.00013488,2]
[425097903,1781493038000,-7204.93858745,0.00013156,2]
[425097941,1781493038000,-1809.95,0.0001376,2]
[425097987,1781493039000,-500.0,0.00014414,2]
[425097994,1781493039000,-500.0,0.00014414,2]
[425097990,1781493039000,-652.63,0.00014414,2]
[425097989,1781493039000,-652.63,0.00014414,2]
[425098016,1781493039000,-425.864745,0.00014666,2]
[425097984,1781493039000,-204.60224632,0.00014365,2]
[425097986,1781493039000,-500.0,0.00014414,2]
[425097985,1781493039000,-500.0,0.00014414,2]
[425097982,1781493039000,-877.83791982,0.00014354,2]
[425097988,1781493039000,-500.0,0.00014414,2]
[425097999,1781493039000,-500.0,0.00014414,2]
[425098015,1781493039000,-204.60224629,0.00014633,2]
[425097997,1781493039000,-500.0,0.00014414,2]
[425097995,1781493039000,-500.0,0.00014414,2]
[425098002,1781493039000,-204.60224629,0.00014454,2]
[425098001,1781493039000,-500.0,0.00014414,2]
[425097945,1781493039000,-500.0,0.00013989,2]
[425097998,1781493039000,-500.0,0.00014414,2]
[425098003,1781493039000,-7204.93858745,0.00014464,2]
[425098000,1781493039000,-500.0,0.00014414,2]
[425098004,1781493039000,-1096.55146252,0.00014474,2]
[425098005,1781493039000,-150.0,0.00014487,2]
[425098013,1781493039000,-250.0,0.00014587,2]
[425097992,1781493039000,-652.63,0.00014414,2]
[425097996,1781493039000,-500.0,0.00014414,2]
[425097993,1781493039000,-207.98190929,0.00014414,2]
[425097973,1781493039000,-323.995359,0.00014176,2]
[425097983,1781493039000,-652.63,0.00014355,2]
[425097947,1781493039000,-6067.80329253,0.0001399,2]
[425097943,1781493039000,-150.0,0.00013987,2]
[425097950,1781493039000,-850.06348174,0.0001399,2]
[425097963,1781493039000,-500.0,0.00014006,2]
[425097961,1781493039000,-593.20420191,0.00014006,2]
[425097965,1781493039000,-500.0,0.00014006,2]
[425097964,1781493039000,-652.63,0.00014006,2]
[425097967,1781493039000,-150.0,0.00014021,2]
[425097956,1781493039000,-15368.34948046,0.0001399,2]
[425097966,1781493039000,-500.0,0.00014006,2]
[425097958,1781493039000,-1500.0,0.00014,2]
[425097960,1781493039000,-250.0,0.00014,2]
[425097968,1781493039000,-7204.93858745,0.00014028,2]
[425097969,1781493039000,-187.8,0.0001403,2]
[425097971,1781493039000,-1096.55146252,0.00014049,2]
[425097970,1781493039000,-187.8,0.0001403,2]
[425097972,1781493039000,-220.081383,0.00014127,2]
[425097974,1781493039000,-275.709857,0.00014176,2]
[425097975,1781493039000,-251.341855,0.00014176,2]
[425097979,1781493039000,-150.0,0.00014237,2]
[425097976,1781493039000,-171.7263481,0.00014184,2]
[425097977,1781493039000,-477.99150398,0.0001421,7]
[425097978,1781493039000,-211.666667,0.00014214,2]
[425097980,1781493039000,-150.0,0.00014237,2]
[425097981,1781493039000,-586.44,0.00014339,2]
[425097991,1781493039000,-652.63,0.00014414,2]
[425098006,1781493039000,-5202.16,0.00014504,2]
[425098020,1781493039000,-350.0,0.000148,2]
[425098014,1781493039000,-877.8379198,0.00014627,2]
[425098047,1781493039000,-500.0,0.00014999,2]
[425098043,1781493039000,-500.0,0.00014999,2]
[425098051,1781493039000,-500.0,0.00014999,2]
[425098042,1781493039000,-500.0,0.00014999,2]
[425098045,1781493039000,-500.0,0.00014999,2]
[425098044,1781493039000,-500.0,0.00014999,2]
[425098049,1781493039000,-500.0,0.00014999,2]
[425098050,1781493039000,-500.0,0.00014999,2]
[425098046,1781493039000,-500.0,0.00014999,2]
[425098048,1781493039000,-500.0,0.00014999,2]
[425098054,1781493039000,-250.0080347,0.00014999,2]
[425098064,1781493039000,-652.63,0.00014999,2]
[425098053,1781493039000,-500.0,0.00014999,2]
[425098055,1781493039000,-652.63,0.00014999,2]
[425098062,1781493039000,-652.63,0.00014999,2]
[425098059,1781493039000,-652.63,0.00014999,2]
[425098063,1781493039000,-652.63,0.00014999,2]
[425098057,1781493039000,-652.63,0.00014999,2]
[425098056,1781493039000,-652.63,0.00014999,2]
[425098060,1781493039000,-652.63,0.00014999,2]
[425098058,1781493039000,-652.63,0.00014999,2]
[425098061,1781493039000,-652.63,0.00014999,2]
[425098066,1781493039000,-652.63,0.00014999,2]
[425098065,1781493039000,-652.63,0.00014999,2]
[425098007,1781493039000,-369.5,0.00014504,2]
[425098052,1781493039000,-500.0,0.00014999,2]
[425098041,1781493039000,-114473.78609116,0.00014989,2]
[425098029,1781493039000,-630.03627175,0.000149,2]
[425098039,1781493039000,-500.0,0.00014988,2]
[425098008,1781493039000,-150.99,0.00014504,2]
[425098036,1781493039000,-154.17590159,0.00014986,2]
[425098010,1781493039000,-299.99,0.00014504,2]
[425098012,1781493039000,-204.60224629,0.00014543,2]
[425098011,1781493039000,-26067.42,0.00014504,2]
[425098017,1781493039000,-4763.66169759,0.00014682,2]
[425098019,1781493039000,-4763.66169759,0.00014791,2]
[425098022,1781493039000,-25000.0,0.00014891,3]
[425098021,1781493039000,-204.60224629,0.00014811,2]
[425098018,1781493039000,-204.60224629,0.00014722,2]
[425098026,1781493039000,-4763.66169759,0.000149,2]
[425098028,1781493039000,-1096.55146252,0.000149,2]
[425098009,1781493039000,-11327.89,0.00014504,2]
[425098023,1781493039000,-204.60224629,0.000149,2]
[425098025,1781493039000,-25000.0,0.000149,3]
[425098037,1781493039000,-154.65220624,0.00014986,2]
[425098038,1781493039000,-500.0,0.00014988,2]
[425098034,1781493039000,-153.60515787,0.00014986,2]
[425098031,1781493039000,-11135.30595714,0.000149,3]
[425098033,1781493039000,-291.7823094,0.00014908,2]
[425098032,1781493039000,-7204.93858745,0.000149,2]
[425098030,1781493039000,-2039.78545627,0.000149,2]
[425098024,1781493039000,-10870.01538874,0.000149,2]
[425098027,1781493039000,-877.8379198,0.000149,2]
[425098040,1781493039000,-500.0,0.00014988,2]
[425098035,1781493039000,-156.18123839,0.00014986,2]
[425098096,1781493040000,-500.0,0.00014999,2]
[425098085,1781493040000,-500.0,0.00014999,2]
[425098090,1781493040000,-500.0,0.00014999,2]
[425098091,1781493040000,-500.0,0.00014999,2]
[425098099,1781493040000,-500.0,0.00014999,2]
[425098098,1781493040000,-500.0,0.00014999,2]
[425098092,1781493040000,-500.0,0.00014999,2]
[425098100,1781493040000,-500.0,0.00014999,2]
[425098097,1781493040000,-500.0,0.00014999,2]
[425098095,1781493040000,-500.0,0.00014999,2]
[425098093,1781493040000,-500.0,0.00014999,2]
[425098111,1781493040000,-500.0,0.00014999,2]
[425098114,1781493040000,-500.0,0.00014999,2]
[425098113,1781493040000,-500.0,0.00014999,2]
[425098112,1781493040000,-500.0,0.00014999,2]
[425098086,1781493040000,-500.0,0.00014999,2]
[425098094,1781493040000,-500.0,0.00014999,2]
[425098083,1781493040000,-3000.0,0.00014999,2]
[425098070,1781493040000,-652.63,0.00014999,2]
[425098084,1781493040000,-500.0,0.00014999,2]
[425098067,1781493040000,-652.63,0.00014999,2]
[425098074,1781493040000,-500.0,0.00014999,2]
[425098068,1781493040000,-652.63,0.00014999,2]
[425098075,1781493040000,-500.0,0.00014999,2]
[425098076,1781493040000,-500.0,0.00014999,2]
[425098069,1781493040000,-652.63,0.00014999,2]
[425098073,1781493040000,-500.0,0.00014999,2]
[425098071,1781493040000,-652.63,0.00014999,2]
[425098081,1781493040000,-251.52702595,0.00014999,2]
[425098101,1781493040000,-500.0,0.00014999,2]
[425098087,1781493040000,-500.0,0.00014999,2]
[425098088,1781493040000,-500.0,0.00014999,2]
[425098089,1781493040000,-500.0,0.00014999,2]
[425098077,1781493040000,-500.0,0.00014999,2]
[425098079,1781493040000,-500.0,0.00014999,2]
[425098078,1781493040000,-500.0,0.00014999,2]
[425098082,1781493040000,-250.0,0.00014999,2]
[425098080,1781493040000,-500.0,0.00014999,2]
[425098072,1781493040000,-652.74830426,0.00014999,2]
[425098110,1781493040000,-500.0,0.00014999,2]
[425098117,1781493040000,-500.0,0.00014999,2]
[425098102,1781493040000,-500.0,0.00014999,2]
[425098108,1781493040000,-500.0,0.00014999,2]
[425098128,1781493040000,-500.0,0.00014999,2]
[425098132,1781493040000,-500.0,0.00014999,2]
[425098134,1781493040000,-500.0,0.00014999,2]
[425098137,1781493040000,-500.0,0.00014999,2]
[425098140,1781493040000,-500.0,0.00014999,2]
[425098147,1781493040000,-300.0,0.00014999,2]
[425098129,1781493040000,-500.0,0.00014999,2]
[425098142,1781493040000,-300.0,0.00014999,2]
[425098144,1781493040000,-300.0,0.00014999,2]
[425098146,1781493040000,-300.0,0.00014999,2]
[425098139,1781493040000,-500.0,0.00014999,2]
[425098138,1781493040000,-500.0,0.00014999,2]
[425098145,1781493040000,-300.0,0.00014999,2]
[425098148,1781493040000,-10811785.9860366,0.00015,2]
[425098141,1781493040000,-500.0,0.00014999,2]
[425098143,1781493040000,-300.0,0.00014999,2]
[425098136,1781493040000,-500.0,0.00014999,2]
[425098133,1781493040000,-500.0,0.00014999,2]
[425098126,1781493040000,-500.0,0.00014999,2]
[425098106,1781493040000,-500.0,0.00014999,2]
[425098103,1781493040000,-500.0,0.00014999,2]
[425098107,1781493040000,-500.0,0.00014999,2]
[425098104,1781493040000,-500.0,0.00014999,2]
[425098109,1781493040000,-500.0,0.00014999,2]
[425098135,1781493040000,-500.0,0.00014999,2]
[425098121,1781493040000,-500.0,0.00014999,2]
[425098116,1781493040000,-500.0,0.00014999,2]
[425098115,1781493040000,-500.0,0.00014999,2]
[425098124,1781493040000,-500.0,0.00014999,2]
[425098120,1781493040000,-500.0,0.00014999,2]
[425098122,1781493040000,-500.0,0.00014999,2]
[425098125,1781493040000,-500.0,0.00014999,2]
[425098123,1781493040000,-500.0,0.00014999,2]
[425098119,1781493040000,-500.0,0.00014999,2]
[425098127,1781493040000,-500.0,0.00014999,2]
[425098130,1781493040000,-500.0,0.00014999,2]
[425098118,1781493040000,-500.0,0.00014999,2]
[425098131,1781493040000,-500.0,0.00014999,2]
[425098149,1781493041000,-1689757.07482384,0.00015,2]
[425098151,1781493042000,-1413.10572898,0.00015,2]
[425098152,1781493042000,-333.7537878,0.00015,2]
[425098150,1781493042000,-19.98335395,0.00015,2]
[425098159,1781493043000,-903.73261565,0.00015,2]
[425098161,1781493043000,-385.0184341,0.00015,2]
[425098160,1781493043000,-1050.66056427,0.00015,2]
[425098168,1781493047000,-722775.93555783,0.00015,2]
[425098167,1781493047000,-343.46,0.00015,2]
[425098166,1781493047000,-1879.33030018,0.00015,2]
[425098175,1781493245000,238.54,0.00030137,120]
[425098179,1781493553000,-269.41287568,0.00011064,2]
[425098181,1781493580000,150.0,0.00010732,2]
[425098190,1781493591000,-500.0,0.00011941,2]
[425098187,1781493591000,-500.0,0.00011929,2]
[425098189,1781493591000,-500.0,0.00011941,2]
[425098188,1781493591000,-500.0,0.00011941,2]
[425098184,1781493591000,-150.0,0.00011159,2]
[425098186,1781493591000,-266.01477026,0.00011488,2]
[425098193,1781493591000,-500.0,0.00011941,2]
[425098183,1781493591000,-250.0,0.00011104,2]
[425098182,1781493591000,-500.0,0.00011077,2]
[425098185,1781493591000,-150.0,0.0001127,2]
[425098191,1781493591000,-500.0,0.00011941,2]
[425098192,1781493591000,-500.0,0.00011941,2]
[425098194,1781493591000,-500.0,0.00011941,2]
[425098196,1781493591000,-500.0,0.00011941,2]
[425098195,1781493591000,-500.0,0.00011941,2]
[425098197,1781493591000,-500.0,0.00011941,2]
[425098198,1781493591000,-500.0,0.00011941,2]
[425098200,1781493591000,-500.0,0.00011941,2]
[425098199,1781493591000,-500.0,0.00011941,2]
[425098201,1781493591000,-500.0,0.00011941,2]
[425098203,1781493591000,-500.0,0.00011941,2]
[425098202,1781493591000,-500.0,0.00011941,2]
[425098204,1781493591000,-183.98522974,0.00011941,2]
[425098205,1781493593000,-316.01477026,0.00011941,2]
[425098206,1781493593000,-500.0,0.00011941,2]
[425098208,1781493593000,-500.0,0.00011941,2]
[425098207,1781493593000,-500.0,0.00011941,2]
[425098209,1781493593000,-500.0,0.00011941,2]
[425098214,1781493593000,-500.0,0.00011941,2]
[425098211,1781493593000,-500.0,0.00011941,2]
[425098212,1781493593000,-292.44239335,0.00011941,2]
[425098213,1781493593000,-500.0,0.00011941,2]
[425098215,1781493593000,-200.0,0.00011942,2]
[425098210,1781493593000,-500.0,0.00011941,2]
[425098224,1781493641000,69.41287568,0.00010745,2]
[425098223,1781493641000,80.58712432,0.00010745,2]
[425098227,1781494014000,188.8749975,0.00030137,120]
[425098241,1781494021000,-151.0,0.00012042,2]
[425098240,1781494021000,-301.95849375,0.00012041,2]
[425098238,1781494021000,-150.0,0.00012041,2]
[425098239,1781494021000,-150.0,0.00012041,2]
[425098237,1781494021000,-150.0,0.00012041,2]
[425098236,1781494021000,-152.0,0.00012041,2]
[425098234,1781494021000,-150.0,0.00012041,2]
[425098231,1781494021000,-150.0,0.00012041,2]
[425098233,1781494021000,-151.0,0.00012041,2]
[425098232,1781494021000,-151.0,0.00012041,2]
[425098230,1781494021000,-365.82693259,0.0001204,2]
[425098228,1781494021000,-500.0,0.0001204,2]
[425098229,1781494021000,-500.0,0.0001204,2]
[425098243,1781494021000,-152.0,0.00012042,2]
[425098235,1781494021000,-151.0,0.00012041,2]
[425098245,1781494021000,-151.0,0.00012042,2]
[425098253,1781494021000,-153.0,0.00012042,2]
[425098242,1781494021000,-151.0,0.00012042,2]
[425098261,1781494021000,-152.0,0.00012042,2]
[425098260,1781494021000,-151.0,0.00012042,2]
[425098258,1781494021000,-151.0,0.00012042,2]
[425098257,1781494021000,-150.0,0.00012042,2]
[425098255,1781494021000,-208.0,0.00012042,2]
[425098254,1781494021000,-309.0,0.00012042,2]
[425098251,1781494021000,-317.0,0.00012042,2]
[425098256,1781494021000,-150.0,0.00012042,2]
[425098259,1781494021000,-150.0,0.00012042,2]
[425098250,1781494021000,-318.0,0.00012042,2]
[425098248,1781494021000,-318.0,0.00012042,2]
[425098249,1781494021000,-151.0,0.00012042,2]
[425098246,1781494021000,-309.0,0.00012042,2]
[425098247,1781494021000,-320.0,0.00012042,2]
[425098252,1781494021000,-321.0,0.00012042,2]
[425098244,1781494021000,-151.0,0.00012042,2]
[425098264,1781494022000,-152.0,0.00012042,2]
[425098262,1781494022000,-151.0,0.00012042,2]
[425098263,1781494022000,-151.0,0.00012042,2]
[425098265,1781494022000,-152.0,0.00012042,2]
[425098266,1781494022000,-612.521991,0.00012042,2]
[425098270,1781494022000,-216.09656886,0.00012058,2]
[425098268,1781494022000,-311.0,0.00012042,2]
[425098269,1781494022000,-160.0,0.0001205,2]
[425098271,1781494022000,-316.0,0.00012089,2]
[425098272,1781494022000,-51.5960138,0.00012089,2]
[425098267,1781494022000,-320.0,0.00012042,2]
[425098274,1781494023000,-166.66,0.00012104,2]
[425098275,1781494023000,-315.0,0.00012293,2]
[425098273,1781494023000,-266.4039862,0.00012089,2]
[425098276,1781494025000,150.0,0.00012041,2]
[425098277,1781494043000,-154.20188214,0.00012359,2]
[425098300,1781494233000,-1282.15192659,0.00012054,2]
[425098299,1781494233000,-5536.37727131,0.00012054,2]
[425098298,1781494233000,-19696.80322354,0.00012054,2]
[425098301,1781494233000,-12.45811786,0.00012359,2]
[425098294,1781494233000,-500.0,0.00012053,2]
[425098288,1781494233000,-170.73646077,0.00012053,2]
[425098289,1781494233000,-500.0,0.00012053,2]
[425098292,1781494233000,-500.0,0.00012053,2]
[425098290,1781494233000,-175.94745642,0.00012053,2]
[425098293,1781494233000,-531.39071582,0.00012053,2]
[425098297,1781494233000,-3890.87551226,0.00012054,2]
[425098291,1781494233000,-232.87018271,0.00012053,2]
[425098302,1781494233000,-150.0,0.00012422,2]
[425098296,1781494233000,-150.0,0.00012054,2]
[425098303,1781494233000,-151.0,0.00012425,2]
[425098316,1781494233000,-983.3726269,0.00012549,2]
[425098311,1781494233000,-152.0,0.00012482,2]
[425098314,1781494233000,-5814.73,0.00012531,2]
[425098309,1781494233000,-150.0,0.00012443,2]
[425098310,1781494233000,-151.0,0.00012447,2]
[425098315,1781494233000,-140.6073731,0.00012549,2]
[425098304,1781494233000,-151.0,0.00012428,2]
[425098317,1781494233000,-522.02074468,0.00012552,2]
[425098312,1781494233000,-216.09656886,0.00012484,2]
[425098307,1781494233000,-150.48976445,0.00012435,2]
[425098305,1781494233000,-151.0,0.00012432,2]
[425098306,1781494233000,-0.51023555,0.00012435,2]
[425098295,1781494233000,-152.0,0.00012054,2]
[425098308,1781494233000,-151.0,0.00012439,2]
[425098332,1781494234000,-297.47,0.00012732,2]
[425098333,1781494234000,-1875.01,0.00012754,2]
[425098330,1781494234000,-187.8,0.00012713,2]
[425098328,1781494234000,-91.21365272,0.00012713,2]
[425098329,1781494234000,-96.58634728,0.00012713,2]
[425098331,1781494234000,-4378.14,0.00012726,2]
[425098323,1781494234000,-321.23571017,0.00012552,2]
[425098326,1781494234000,-1000.0,0.00012697,2]
[425098325,1781494234000,-64.41360987,0.00012614,2]
[425098324,1781494234000,-102.24639013,0.00012614,2]
[425098322,1781494234000,-749.6440699,0.00012552,2]
[425098321,1781494234000,-454.02947525,0.00012552,2]
[425098334,1781494234000,-200.0,0.0001276,2]
[425098327,1781494234000,-677.89,0.00012713,2]
[425098341,1781494234000,-541.08722369,0.00012871,2]
[425098336,1781494234000,-500.0,0.00012803,2]
[425098342,1781494234000,-452.07187447,0.00012893,2]
[425098351,1781494234000,-1855.39247416,0.00012893,2]
[425098350,1781494234000,-2909.11681506,0.00012893,2]
[425098347,1781494234000,-205.29320419,0.00012893,2]
[425098349,1781494234000,-502.36710965,0.00012893,2]
[425098339,1781494234000,-166.66,0.00012869,2]
[425098346,1781494234000,-596.72411735,0.00012053,2]
[425098343,1781494234000,-8173.23656239,0.00012893,2]
[425098348,1781494234000,-1017.73560507,0.00012893,2]
[425098345,1781494234000,-3911.1042238,0.00012893,2]
[425098340,1781494234000,-676.56277631,0.00012871,2]
[425098338,1781494234000,-158.12,0.00012821,2]
[425098337,1781494234000,-184.76,0.00012819,2]
[425098335,1781494234000,-533.93,0.00012801,2]
[425098344,1781494234000,-6198.44125703,0.00012893,2]
[425098359,1781494238000,-17.13354246,0.00012893,2]
[425098355,1781494238000,-119.72416441,0.00012893,2]
[425098356,1781494238000,-31.26583559,0.00012893,2]
[425098357,1781494238000,-251.41464466,0.00012893,2]
[425098358,1781494238000,-543.80863112,0.00012893,2]
[425098361,1781494238000,-6562.3035872,0.00012893,2]
[425098354,1781494238000,-842.66087418,0.00012893,2]
[425098360,1781494238000,-1432.72139523,0.00012893,2]
[425098364,1781494238000,-506.53,0.00012893,2]
[425098365,1781494238000,-999.99,0.00012893,2]
[425098368,1781494238000,-9999.99,0.00012893,2]
[425098363,1781494238000,-11327.89,0.00012893,2]
[425098366,1781494238000,-7171.66,0.00012893,2]
[425098367,1781494238000,-4999.99,0.00012893,2]
[425098362,1781494238000,-1192.60819933,0.00012893,2]
[425098407,1781494239000,-500.0,0.00013699,2]
[425098410,1781494239000,-500.0,0.00013699,2]
[425098408,1781494239000,-500.0,0.00013699,2]
[425098405,1781494239000,-500.0,0.00013699,2]
[425098409,1781494239000,-500.0,0.00013699,2]
[425098414,1781494239000,-500.0,0.00013989,2]
[425098403,1781494239000,-500.0,0.00013699,2]
[425098412,1781494239000,-614.00178976,0.00013699,2]
[425098406,1781494239000,-500.0,0.00013699,2]
[425098413,1781494239000,-500.0,0.00013699,2]
[425098411,1781494239000,-500.0,0.00013699,2]
[425098416,1781494239000,-15368.34948046,0.0001399,2]
[425098426,1781494239000,-500.0,0.00014414,2]
[425098415,1781494239000,-500.0,0.00013989,2]
[425098425,1781494239000,-500.0,0.00014414,2]
[425098402,1781494239000,-500.0,0.00013699,2]
[425098417,1781494239000,-6386.25,0.00014,2]
[425098420,1781494239000,-1123.98,0.00014118,2]
[425098419,1781494239000,-500.0,0.00014006,2]
[425098423,1781494239000,-500.0,0.00014414,2]
[425098418,1781494239000,-500.0,0.00014006,2]
[425098422,1781494239000,-500.0,0.00014414,2]
[425098421,1781494239000,-297.47,0.00014323,2]
[425098436,1781494239000,-500.0,0.00014414,2]
[425098428,1781494239000,-500.0,0.00014414,2]
[425098437,1781494239000,-275.709857,0.000147,2]
[425098424,1781494239000,-500.0,0.00014414,2]
[425098392,1781494239000,-500.0,0.00013698,2]
[425098391,1781494239000,-157.2008546,0.00013681,2]
[425098396,1781494239000,-500.0,0.00013699,2]
[425098427,1781494239000,-500.0,0.00014414,2]
[425098370,1781494239000,-369.5,0.00012893,2]
[425098371,1781494239000,-10000.0,0.00013,2]
[425098372,1781494239000,-164.51,0.00013034,2]
[425098373,1781494239000,-166.66,0.00013124,2]
[425098374,1781494239000,-300.0,0.00013246,2]
[425098369,1781494239000,-299.99,0.00012893,2]
[425098376,1781494239000,-500.0,0.00013259,2]
[425098384,1781494239000,-156.18123839,0.00013488,2]
[425098386,1781494239000,-154.65220624,0.00013488,2]
[425098385,1781494239000,-154.17590159,0.00013488,2]
[425098379,1781494239000,-9545.89100833,0.00013365,2]
[425098380,1781494239000,-14280.08204621,0.00013365,2]
[425098377,1781494239000,-2050.43834446,0.00013365,2]
[425098381,1781494239000,-19321.4538,0.00013365,2]
[425098382,1781494239000,-166.66,0.00013379,2]
[425098375,1781494239000,-193.30679065,0.00013259,2]
[425098378,1781494239000,-5411.13923214,0.00013365,2]
[425098383,1781494239000,-153.60515788,0.00013488,2]
[425098387,1781494239000,-500.0,0.00013563,2]
[425098388,1781494239000,-250.0,0.00013595,2]
[425098398,1781494239000,-500.0,0.00013699,2]
[425098389,1781494239000,-2978.251,0.00013599,2]
[425098390,1781494239000,-6824.0566,0.00013599,2]
[425098393,1781494239000,-500.0,0.00013698,2]
[425098400,1781494239000,-500.0,0.00013699,2]
[425098394,1781494239000,-500.0,0.00013699,2]
[425098395,1781494239000,-500.0,0.00013699,2]
[425098432,1781494239000,-504.7229529,0.00014414,2]
[425098487,1781494239000,-500.0,0.00014899,2]
[425098430,1781494239000,-580.74875671,0.00014414,2]
[425098464,1781494239000,-500.0,0.00014899,2]
[425098465,1781494239000,-500.0,0.00014899,2]
[425098467,1781494239000,-500.0,0.00014899,2]
[425098472,1781494239000,-500.0,0.00014899,2]
[425098468,1781494239000,-500.0,0.00014899,2]
[425098470,1781494239000,-500.0,0.00014899,2]
[425098473,1781494239000,-500.0,0.00014899,2]
[425098471,1781494239000,-500.0,0.00014899,2]
[425098463,1781494239000,-4763.66169759,0.00014889,2]
[425098474,1781494239000,-3000.0,0.00014899,2]
[425098476,1781494239000,-500.0,0.00014899,2]
[425098479,1781494239000,-500.0,0.00014899,2]
[425098466,1781494239000,-500.0,0.00014899,2]
[425098486,1781494239000,-500.0,0.00014899,2]
[425098480,1781494239000,-500.0,0.00014899,2]
[425098477,1781494239000,-500.0,0.00014899,2]
[425098484,1781494239000,-500.0,0.00014899,2]
[425098478,1781494239000,-500.0,0.00014899,2]
[425098485,1781494239000,-500.0,0.00014899,2]
[425098481,1781494239000,-500.0,0.00014899,2]
[425098482,1781494239000,-500.0,0.00014899,2]
[425098483,1781494239000,-293.98249258,0.00014899,2]
[425098490,1781494239000,-167.83801069,0.000149,2]
[425098491,1781494239000,-2000.0,0.000149,2]
[425098429,1781494239000,-500.0,0.00014414,2]
[425098488,1781494239000,-500.0,0.00014899,2]
[425098475,1781494239000,-500.0,0.00014899,2]
[425098469,1781494239000,-500.0,0.00014899,2]
[425098489,1781494239000,-500.0,0.00014899,2]
[425098460,1781494239000,-4763.66169759,0.00014878,2]
[425098462,1781494239000,-156.65020893,0.00014883,2]
[425098431,1781494239000,-500.0,0.00014414,2]
[425098433,1781494239000,-500.0,0.00014414,2]
[425098435,1781494239000,-500.0,0.00014414,2]
[425098438,1781494239000,-720.49385879,0.00014737,2]
[425098441,1781494239000,-720.49385874,0.00014773,2]
[425098439,1781494239000,-2500.0,0.00014744,2]
[425098440,1781494239000,-720.49385874,0.00014755,2]
[425098449,1781494239000,-4763.66169759,0.00014822,2]
[425098443,1781494239000,-156.65020894,0.000148,2]
[425098442,1781494239000,-720.49385874,0.00014791,2]
[425098448,1781494239000,-156.65020893,0.00014817,2]
[425098444,1781494239000,-4763.6616976,0.000148,2]
[425098434,1781494239000,-500.0,0.00014414,2]
[425098446,1781494239000,-720.49385874,0.00014809,2]
[425098459,1781494239000,-4763.66169759,0.00014867,2]
[425098458,1781494239000,-156.65020893,0.00014867,2]
[425098456,1781494239000,-4763.66169759,0.00014856,2]
[425098455,1781494239000,-156.65020893,0.0001485,2]
[425098447,1781494239000,-4763.66169759,0.00014811,2]
[425098454,1781494239000,-720.49385874,0.00014846,2]
[425098457,1781494239000,-720.49385874,0.00014864,2]
[425098461,1781494239000,-720.49385874,0.00014882,2]
[425098450,1781494239000,-720.49385874,0.00014828,2]
[425098453,1781494239000,-4763.66169759,0.00014844,2]
[425098451,1781494239000,-156.65020893,0.00014833,2]
[425098445,1781494239000,-3115.13192059,0.000148,2]
[425098452,1781494239000,-4763.66169759,0.00014833,2]
[425098529,1781494240000,-500.0,0.00014999,2]
[425098527,1781494240000,-500.0,0.00014999,2]
[425098532,1781494240000,-500.0,0.00014999,2]
[425098530,1781494240000,-500.0,0.00014999,2]
[425098522,1781494240000,-500.0,0.00014999,2]
[425098528,1781494240000,-500.0,0.00014999,2]